[Event "*** Titled Tuesday 3|2 Blitz"]
[Site "Chess.com"]
[Date "2016.01.05"]
[Round "4"]
[White "LADIESGET2KNOWME"]
[Black "Dlugy"]
[Result "1-0"]
[WhiteElo "2302"]
[BlackElo "2547"]
[TimeControl "180+2"]
[EndTime "17:46:41 PST"]
[Termination "LADIESGET2KNOWME won by resignation"]

1. d4 {[%clk 0:03:01.9]} 1... Nf6 {[%clk 0:03:00.8]} 2. Nf3 {[%clk 0:03:03]}
2... g6 {[%clk 0:03:02.5]} 3. c4 {[%clk 0:03:03.4]} 3... Bg7 {[%clk 0:03:04.4]}
4. Nc3 {[%clk 0:03:04.9]} 4... O-O {[%clk 0:03:06.1]} 5. e4 {[%clk 0:03:06.2]}
5... d6 {[%clk 0:03:07.7]} 6. Be2 {[%clk 0:03:07.7]} 6... e5 {[%clk 0:03:09.3]}
7. O-O {[%clk 0:03:09.3]} 7... exd4 {[%clk 0:03:10.6]} 8. Nxd4 {[%clk
0:03:10.2]} 8... Re8 {[%clk 0:03:12.2]} 9. f3 {[%clk 0:03:11]} 9... c6 {[%clk
0:03:13.8]} 10. Be3 {[%clk 0:03:09.5]} 10... d5 {[%clk 0:03:11.1]} 11. cxd5
{[%clk 0:03:09.8]} 11... Nxd5 {[%clk 0:03:12.4]} 12. Nxd5 {[%clk 0:03:10.9]}
12... cxd5 {[%clk 0:03:13.6]} 13. Qb3 {[%clk 0:03:10.1]} 13... dxe4 {[%clk
0:03:06.9]} 14. Rad1 {[%clk 0:03:10.9]} 14... Qb6 {[%clk 0:02:57.2]} 15. Nb5
{[%clk 0:02:54.7]} 15... Be6 {[%clk 0:02:47.7]} 16. Bxb6 {[%clk 0:02:36.1]}
16... Bxb3 {[%clk 0:02:48.6]} 17. axb3 {[%clk 0:02:36.3]} 17... axb6 {[%clk
0:02:48.9]} 18. Nc7 {[%clk 0:02:37.6]} 18... exf3 {[%clk 0:02:46.9]} 19. Bxf3
{[%clk 0:02:33.3]} 19... Nc6 {[%clk 0:02:48]} 20. Nxa8 {[%clk 0:02:28.9]} 20...
Rxa8 {[%clk 0:02:48.9]} 21. Rd7 {[%clk 0:02:21.9]} 21... Ne5 {[%clk 0:02:45.7]}
22. Rxb7 {[%clk 0:02:22.2]} 22... Nxf3+ {[%clk 0:02:46.7]} 23. Rxf3 {[%clk
0:02:18.5]} 23... f5 {[%clk 0:02:47.2]} 24. Rd3 {[%clk 0:02:16.1]} 24... Bxb2
{[%clk 0:02:43.3]} 25. Rxb6 {[%clk 0:02:05.7]} 25... Ra7 {[%clk 0:02:44.5]} 26.
Rbd6 {[%clk 0:01:59]} 26... Ra3 {[%clk 0:02:38.1]} 27. Rd7 {[%clk 0:01:57.7]}
27... Bf6 {[%clk 0:02:36.4]} 28. Rb7 {[%clk 0:01:54.6]} 28... Ra8 {[%clk
0:02:23.3]} 29. Rdd7 {[%clk 0:01:51]} 29... h5 {[%clk 0:02:23.5]} 30. b4 {[%clk
0:01:46.2]} 30... g5 {[%clk 0:02:18.3]} 31. b5 {[%clk 0:01:46.7]} 31... f4
{[%clk 0:02:18.7]} 32. Kf1 {[%clk 0:01:32.2]} 32... g4 {[%clk 0:02:18]} 33. b6
{[%clk 0:01:32.8]} 33... Re8 {[%clk 0:02:04.2]} 34. Rbc7 {[%clk 0:01:31.3]}
34... Bh4 {[%clk 0:02:05.2]} 35. Rg7+ {[%clk 0:01:25.1]} 35... Kh8 {[%clk
0:02:06.1]} 36. Rh7+ {[%clk 0:01:26.5]} 36... Kg8 {[%clk 0:02:07.5]} 37. Rcg7+
{[%clk 0:01:28.1]} 37... Kf8 {[%clk 0:02:08.9]} 38. Rh8+ {[%clk 0:01:29.4]}
38... Kxg7 {[%clk 0:02:10.1]} 39. Rxe8 {[%clk 0:01:31.3]} 1-0

[Event "*** Titled Tuesday 3|2 Blitz"]
[Site "Chess.com"]
[Date "2016.01.05"]
[Round "4"]
[White "MinhGTrAn"]
[Black "Malev212"]
[Result "1-0"]
[WhiteElo "2549"]
[BlackElo "2285"]
[TimeControl "180+2"]
[EndTime "17:46:49 PST"]
[Termination "MinhGTrAn won by resignation"]

1. d4 {[%clk 0:03:01.9]} 1... Nf6 {[%clk 0:02:59.7]} 2. c4 {[%clk 0:03:03.3]}
2... b6 {[%clk 0:02:59]} 3. Nc3 {[%clk 0:03:02.5]} 3... Bb7 {[%clk 0:02:59.9]}
4. d5 {[%clk 0:03:04.1]} 4... e6 {[%clk 0:02:57.8]} 5. e4 {[%clk 0:03:02.3]}
5... Bb4 {[%clk 0:02:56.2]} 6. Bd3 {[%clk 0:03:03.7]} 6... Bxc3+ {[%clk
0:02:51.8]} 7. bxc3 {[%clk 0:03:05.6]} 7... d6 {[%clk 0:02:52.5]} 8. Ne2 {[%clk
0:03:06.5]} 8... Nbd7 {[%clk 0:02:53.3]} 9. O-O {[%clk 0:02:50.2]} 9... Ne5
{[%clk 0:02:53.5]} 10. Nd4 {[%clk 0:02:38.3]} 10... Nxd3 {[%clk 0:02:44]} 11.
Qxd3 {[%clk 0:02:40.2]} 11... Qd7 {[%clk 0:02:44.3]} 12. Bg5 {[%clk 0:02:35.5]}
12... O-O-O {[%clk 0:02:39.1]} 13. a4 {[%clk 0:02:36.9]} 13... a5 {[%clk
0:02:38.8]} 14. Rfb1 {[%clk 0:02:33.1]} 14... Rde8 {[%clk 0:02:38.6]} 15. Bxf6
{[%clk 0:02:23.2]} 15... gxf6 {[%clk 0:02:38.7]} 16. Rb2 {[%clk 0:02:04.6]}
16... Rhg8 {[%clk 0:02:37.9]} 17. f3 {[%clk 0:01:53.6]} 17... f5 {[%clk
0:02:31.6]} 18. Nb5 {[%clk 0:01:20.7]} 18... fxe4 {[%clk 0:02:27.6]} 19. fxe4
{[%clk 0:01:22.6]} 19... f5 {[%clk 0:02:27]} 20. exf5 {[%clk 0:01:18.8]} 20...
exd5 {[%clk 0:02:26.9]} 21. cxd5 {[%clk 0:01:20.7]} 21... Re5 {[%clk 0:02:26.6]}
22. c4 {[%clk 0:01:02.2]} 22... Rxf5 {[%clk 0:02:26.2]} 23. Re1 {[%clk
0:00:59.6]} 23... Ba6 {[%clk 0:01:57.9]} 24. Na7+ {[%clk 0:01:00.1]} 24... Kb7
{[%clk 0:01:57.5]} 25. Nc6 {[%clk 0:01:02]} 25... Re8 {[%clk 0:01:50]} 26. Rxe8
{[%clk 0:00:52.7]} 26... Qxe8 {[%clk 0:01:50.3]} 27. Qxf5 {[%clk 0:00:54.1]} 1-0

[Event "*** Titled Tuesday 3|2 Blitz"]
[Site "Chess.com"]
[Date "2016.01.05"]
[Round "4"]
[White "StellarChessPro"]
[Black "jefferyx"]
[Result "1-0"]
[WhiteElo "2244"]
[BlackElo "2512"]
[TimeControl "180+2"]
[EndTime "17:48:30 PST"]
[Termination "StellarChessPro won by resignation"]

1. d4 {[%clk 0:03:01.9]} 1... b5 {[%clk 0:02:33.8]} 2. e4 {[%clk 0:03:02.1]}
2... a6 {[%clk 0:02:34.9]} 3. a4 {[%clk 0:03:02.5]} 3... b4 {[%clk 0:02:35.8]}
4. c3 {[%clk 0:03:02.2]} 4... Bb7 {[%clk 0:02:37.1]} 5. Bd3 {[%clk 0:03:03.1]}
5... e6 {[%clk 0:02:37.8]} 6. Nf3 {[%clk 0:03:03.9]} 6... Nf6 {[%clk 0:02:38.7]}
7. Qe2 {[%clk 0:03:03.2]} 7... d5 {[%clk 0:02:39.4]} 8. e5 {[%clk 0:03:03.7]}
8... Nfd7 {[%clk 0:02:40.2]} 9. Bg5 {[%clk 0:02:55.6]} 9... Qc8 {[%clk
0:02:41.3]} 10. Nbd2 {[%clk 0:02:52.6]} 10... c5 {[%clk 0:02:42.3]} 11. O-O
{[%clk 0:02:45.6]} 11... Nc6 {[%clk 0:02:43.4]} 12. h3 {[%clk 0:02:35.7]} 12...
h6 {[%clk 0:02:44.5]} 13. Bf4 {[%clk 0:02:35.9]} 13... g5 {[%clk 0:02:46]} 14.
Bh2 {[%clk 0:02:35.2]} 14... Be7 {[%clk 0:02:46.3]} 15. Rfc1 {[%clk 0:02:22.4]}
15... bxc3 {[%clk 0:02:44]} 16. bxc3 {[%clk 0:02:22.8]} 16... h5 {[%clk
0:02:45.4]} 17. g4 {[%clk 0:02:14.2]} 17... hxg4 {[%clk 0:02:45.9]} 18. hxg4
{[%clk 0:02:14.2]} 18... c4 {[%clk 0:02:19.1]} 19. Bc2 {[%clk 0:02:13.7]} 19...
Qc7 {[%clk 0:02:20.6]} 20. Kg2 {[%clk 0:02:13.1]} 20... O-O-O {[%clk 0:02:22]}
21. Bg3 {[%clk 0:02:14.5]} 21... Qa5 {[%clk 0:02:21.5]} 22. Qe3 {[%clk
0:02:12.1]} 22... Rhe8 {[%clk 0:01:54.7]} 23. Rcb1 {[%clk 0:01:58.5]} 23... f6
{[%clk 0:01:55.7]} 24. exf6 {[%clk 0:01:54.3]} 24... Bxf6 {[%clk 0:01:57.6]} 25.
Bg6 {[%clk 0:01:34.6]} 25... Re7 {[%clk 0:01:56.5]} 26. Bd6 {[%clk 0:01:34.1]}
26... Rg7 {[%clk 0:01:56.4]} 27. Bh5 {[%clk 0:01:27.8]} 27... e5 {[%clk
0:01:57.5]} 28. Rxb7 {[%clk 0:01:16.3]} 28... exd4 {[%clk 0:01:56.6]} 29. Qe6
{[%clk 0:00:55.9]} 29... Kxb7 {[%clk 0:01:57.5]} 30. Rb1+ {[%clk 0:00:51.5]}
30... Ka7 {[%clk 0:01:51.1]} 31. Nxd4 {[%clk 0:00:42.6]} 31... Bxd4 {[%clk
0:01:33]} 32. cxd4 {[%clk 0:00:31.4]} 32... Qxd2 {[%clk 0:01:12.7]} 33. Bc5+
{[%clk 0:00:21.6]} 33... Nxc5 {[%clk 0:01:13.7]} 34. Qxc6 {[%clk 0:00:23]} 34...
Qxd4 {[%clk 0:01:13.6]} 35. Qb6+ {[%clk 0:00:23.6]} 35... Ka8 {[%clk 0:01:13.4]}
36. Qxd8+ {[%clk 0:00:24.7]} 1-0

[Event "*** Titled Tuesday 3|2 Blitz"]
[Site "Chess.com"]
[Date "2016.01.05"]
[Round "4"]
[White "Penguininja"]
[Black "kharposh"]
[Result "0-1"]
[WhiteElo "2130"]
[BlackElo "2093"]
[TimeControl "180+2"]
[EndTime "17:50:09 PST"]
[Termination "kharposh won by resignation"]

1. d4 {[%clk 0:03:01.9]} 1... d5 {[%clk 0:03:01]} 2. c4 {[%clk 0:03:02.3]} 2...
c5 {[%clk 0:03:00.9]} 3. e3 {[%clk 0:02:48.9]} 3... cxd4 {[%clk 0:03:01.1]} 4.
exd4 {[%clk 0:02:49.9]} 4... Nc6 {[%clk 0:03:00.2]} 5. Nc3 {[%clk 0:02:46.7]}
5... Nf6 {[%clk 0:02:59.9]} 6. cxd5 {[%clk 0:02:41.4]} 6... Nxd5 {[%clk
0:03:00.1]} 7. Be2 {[%clk 0:02:33]} 7... e6 {[%clk 0:03:00]} 8. Nf3 {[%clk
0:02:33.9]} 8... Bb4 {[%clk 0:02:59.2]} 9. Qd3 {[%clk 0:02:29.2]} 9... O-O
{[%clk 0:02:59.3]} 10. O-O {[%clk 0:02:29.4]} 10... b6 {[%clk 0:02:53.6]} 11. a3
{[%clk 0:02:29]} 11... Be7 {[%clk 0:02:53.6]} 12. Be3 {[%clk 0:02:24.9]} 12...
Bb7 {[%clk 0:02:53.7]} 13. Bd1 {[%clk 0:02:24]} 13... Nxe3 {[%clk 0:02:51.8]}
14. Qxe3 {[%clk 0:02:24]} 14... Bf6 {[%clk 0:02:49.9]} 15. Ne2 {[%clk 0:01:53]}
15... Ne7 {[%clk 0:02:45.1]} 16. Bc2 {[%clk 0:01:50.2]} 16... Rc8 {[%clk
0:02:33.2]} 17. Rac1 {[%clk 0:01:42.3]} 17... Ba6 {[%clk 0:02:18.8]} 18. Rfd1
{[%clk 0:01:31]} 18... Nd5 {[%clk 0:02:13.5]} 19. Qe4 {[%clk 0:01:20]} 19... g6
{[%clk 0:02:09.8]} 20. h4 {[%clk 0:01:11.9]} 20... Bxe2 {[%clk 0:02:01.1]} 21.
Qxe2 {[%clk 0:01:13.8]} 21... Nf4 {[%clk 0:01:56.7]} 22. Qe4 {[%clk 0:01:13.5]}
22... Nd5 {[%clk 0:01:45.6]} 23. h5 {[%clk 0:01:13.3]} 23... Bg7 {[%clk
0:01:38.5]} 24. g3 {[%clk 0:01:10.2]} 24... Qf6 {[%clk 0:01:33]} 25. Kg2 {[%clk
0:01:08.3]} 25... Rfd8 {[%clk 0:01:32.2]} 26. hxg6 {[%clk 0:00:52]} 26... hxg6
{[%clk 0:01:27.9]} 27. Ne5 {[%clk 0:00:53.2]} 27... Rc7 {[%clk 0:00:57.8]} 28.
Bb3 {[%clk 0:00:48.2]} 28... Rxc1 {[%clk 0:00:49.5]} 29. Rxc1 {[%clk 0:00:50.1]}
29... Qf5 {[%clk 0:00:49.6]} 30. Bxd5 {[%clk 0:00:40.1]} 30... Rxd5 {[%clk
0:00:40]} 31. Rc8+ {[%clk 0:00:35.9]} 31... Bf8 {[%clk 0:00:39.1]} 32. Qh4
{[%clk 0:00:20.4]} 32... Kg7 {[%clk 0:00:28.4]} 33. Ra8 {[%clk 0:00:11.5]} 33...
a5 {[%clk 0:00:19.7]} 34. Nf3 {[%clk 0:00:12.7]} 34... Rb5 {[%clk 0:00:16.3]}
35. b4 {[%clk 0:00:10.8]} 35... Qd5 {[%clk 0:00:15.1]} 36. Qf4 {[%clk
0:00:09.6]} 36... Qxa8 {[%clk 0:00:12.5]} 37. Kh2 {[%clk 0:00:09.9]} 37... Rh5+
{[%clk 0:00:12.1]} 38. Kg2 {[%clk 0:00:10.9]} 38... Rf5 {[%clk 0:00:12.6]} 39.
Qe3 {[%clk 0:00:08.4]} 39... Rxf3 {[%clk 0:00:13.5]} 40. Qxf3 {[%clk 0:00:10.3]}
40... Qxf3+ {[%clk 0:00:13.8]} 0-1

[Event "*** Titled Tuesday 3|2 Blitz"]
[Site "Chess.com"]
[Date "2016.01.05"]
[Round "4"]
[White "mateueasily"]
[Black "Quiet_Desperation"]
[Result "1-0"]
[WhiteElo "2332"]
[BlackElo "2121"]
[TimeControl "180+2"]
[EndTime "17:50:21 PST"]
[Termination "mateueasily won by resignation"]

1. e4 {[%clk 0:03:01.9]} 1... e6 {[%clk 0:03:01]} 2. d4 {[%clk 0:03:02.7]} 2...
d5 {[%clk 0:03:01.7]} 3. Nd2 {[%clk 0:03:03.6]} 3... Nf6 {[%clk 0:03:02.4]} 4.
e5 {[%clk 0:03:02.6]} 4... Nfd7 {[%clk 0:03:03.5]} 5. Bd3 {[%clk 0:03:03.4]}
5... c5 {[%clk 0:03:04.3]} 6. c3 {[%clk 0:03:04.2]} 6... Nc6 {[%clk 0:03:05.4]}
7. Ne2 {[%clk 0:03:04.8]} 7... cxd4 {[%clk 0:03:06.3]} 8. cxd4 {[%clk
0:03:05.8]} 8... f6 {[%clk 0:03:07.8]} 9. exf6 {[%clk 0:03:06.5]} 9... Nxf6
{[%clk 0:03:08.9]} 10. O-O {[%clk 0:03:07.6]} 10... Bd6 {[%clk 0:03:10]} 11. Nf3
{[%clk 0:03:09.1]} 11... Qc7 {[%clk 0:03:11.3]} 12. Bg5 {[%clk 0:03:10.6]} 12...
O-O {[%clk 0:03:11.3]} 13. Bh4 {[%clk 0:03:04.3]} 13... Nh5 {[%clk 0:03:11.1]}
14. Qc2 {[%clk 0:03:04.6]} 14... h6 {[%clk 0:02:59.6]} 15. Bg6 {[%clk 0:03:05]}
15... Rxf3 {[%clk 0:02:58.8]} 16. Bxh5 {[%clk 0:03:06.1]} 16... Bxh2+ {[%clk
0:02:57.7]} 17. Kh1 {[%clk 0:03:05.6]} 17... Rf5 {[%clk 0:02:57.3]} 18. Bg6
{[%clk 0:03:05.5]} 18... Bd6 {[%clk 0:02:58.2]} 19. Bxf5 {[%clk 0:03:05.1]}
19... exf5 {[%clk 0:02:58.9]} 20. Rac1 {[%clk 0:02:15.8]} 20... Qf7 {[%clk
0:02:39.9]} 21. Bg3 {[%clk 0:02:06.6]} 21... f4 {[%clk 0:02:18.9]} 22. Bh2
{[%clk 0:02:06.4]} 22... Qh5 {[%clk 0:01:31]} 23. f3 {[%clk 0:02:06.2]} 23...
Bf5 {[%clk 0:01:14.2]} 24. Qd2 {[%clk 0:02:05.4]} 24... g5 {[%clk 0:01:13.3]}
25. Nc3 {[%clk 0:02:01]} 25... Rf8 {[%clk 0:00:41]} 26. Nxd5 {[%clk 0:01:53.7]}
26... g4 {[%clk 0:00:41.5]} 27. fxg4 {[%clk 0:01:41.5]} 27... Bxg4 {[%clk
0:00:42.6]} 28. Nxf4 {[%clk 0:01:20.7]} 28... Qh4 {[%clk 0:00:34.2]} 29. Kg1
{[%clk 0:01:10.8]} 29... Bd7 {[%clk 0:00:25.3]} 30. Qe3 {[%clk 0:00:53.4]} 30...
Qg5 {[%clk 0:00:22.2]} 31. Rf3 {[%clk 0:00:28.4]} 31... Bg4 {[%clk 0:00:15]} 32.
Rf2 {[%clk 0:00:20.9]} 32... h5 {[%clk 0:00:10.1]} 33. Rcf1 {[%clk 0:00:20.8]}
33... Nxd4 {[%clk 0:00:08.7]} 34. Qxd4 {[%clk 0:00:21.5]} 34... Bc5 {[%clk
0:00:10.2]} 35. Qc4+ {[%clk 0:00:21.9]} 35... Kh7 {[%clk 0:00:08.1]} 36. Bg3
{[%clk 0:00:21.8]} 36... Bf5 {[%clk 0:00:07]} 37. Qxc5 {[%clk 0:00:21.5]} 37...
Qxg3 {[%clk 0:00:07]} 38. Qxf8 {[%clk 0:00:22.1]} 1-0

[Event "*** Titled Tuesday 3|2 Blitz"]
[Site "Chess.com"]
[Date "2016.01.05"]
[Round "4"]
[White "GianmarcoVaR"]
[Black "jcibarra"]
[Result "0-1"]
[WhiteElo "2262"]
[BlackElo "2506"]
[TimeControl "180+2"]
[EndTime "17:50:29 PST"]
[Termination "jcibarra won on time"]

1. d4 {[%clk 0:02:59.5]} 1... Nf6 {[%clk 0:03:00.6]} 2. Nf3 {[%clk 0:02:59.3]}
2... d6 {[%clk 0:03:01.5]} 3. c4 {[%clk 0:03:00.1]} 3... g6 {[%clk 0:03:02.2]}
4. g3 {[%clk 0:02:57.7]} 4... Bg7 {[%clk 0:03:01.9]} 5. Bg2 {[%clk 0:02:59.3]}
5... O-O {[%clk 0:03:03.5]} 6. O-O {[%clk 0:03:00.9]} 6... Nc6 {[%clk 0:03:05]}
7. Nc3 {[%clk 0:03:02]} 7... Bf5 {[%clk 0:03:06.6]} 8. Ne1 {[%clk 0:02:55.7]}
8... Na5 {[%clk 0:03:06.3]} 9. b3 {[%clk 0:02:53]} 9... c5 {[%clk 0:03:00.2]}
10. Bb2 {[%clk 0:02:53.7]} 10... a6 {[%clk 0:02:30]} 11. Rc1 {[%clk 0:02:20.4]}
11... Rb8 {[%clk 0:02:22.1]} 12. Nc2 {[%clk 0:01:36.7]} 12... Bh6 {[%clk
0:02:12.6]} 13. e3 {[%clk 0:01:36]} 13... b5 {[%clk 0:02:11.2]} 14. cxb5 {[%clk
0:01:23.8]} 14... axb5 {[%clk 0:02:13.1]} 15. Qe2 {[%clk 0:01:19.5]} 15... c4
{[%clk 0:02:06.5]} 16. b4 {[%clk 0:01:16.5]} 16... Bd3 {[%clk 0:02:01.5]} 17.
Qd2 {[%clk 0:01:12.4]} 17... Bxf1 {[%clk 0:02:02.4]} 18. Kxf1 {[%clk 0:01:14.3]}
18... Nb7 {[%clk 0:01:57.4]} 19. Nxb5 {[%clk 0:01:15.5]} 19... d5 {[%clk
0:01:48.9]} 20. Nc3 {[%clk 0:01:16.5]} 20... e6 {[%clk 0:01:48.9]} 21. a4 {[%clk
0:01:17.2]} 21... Nd6 {[%clk 0:01:49.7]} 22. b5 {[%clk 0:01:18.4]} 22... Nf5
{[%clk 0:01:42.8]} 23. Nb4 {[%clk 0:01:15]} 23... Ng4 {[%clk 0:01:37.2]} 24. h3
{[%clk 0:00:45.5]} 24... Ngxe3+ {[%clk 0:01:35.2]} 25. fxe3 {[%clk 0:00:43.8]}
25... Bxe3 {[%clk 0:01:30.2]} 26. Qe1 {[%clk 0:00:36.3]} 26... Qd6 {[%clk
0:01:28.1]} 27. Ne2 {[%clk 0:00:25.2]} 27... e5 {[%clk 0:01:14.4]} 28. Nc6
{[%clk 0:00:25.4]} 28... exd4 {[%clk 0:01:11.3]} 29. g4 {[%clk 0:00:23.7]} 29...
Qf6 {[%clk 0:00:57.4]} 30. Bf3 {[%clk 0:00:06.2]} 30... Nh4 {[%clk 0:00:55.4]}
31. Nexd4 {[%clk 0:00:06.7]} 31... Bxc1 {[%clk 0:00:49.5]} 32. Bxc1 {[%clk
0:00:07.8]} 32... Nxf3 {[%clk 0:00:51]} 33. Qf2 {[%clk 0:00:09]} 33... Ra8
{[%clk 0:00:44.1]} 34. a5 {[%clk 0:00:08.5]} 34... Rfe8 {[%clk 0:00:33]} 35.
Qxf3 {[%clk 0:00:08.6]} 35... Qd6 {[%clk 0:00:34.9]} 36. Bf4 {[%clk 0:00:07.6]}
36... Qc5 {[%clk 0:00:34]} 37. b6 {[%clk 0:00:07.7]} 37... Rxa5 {[%clk
0:00:32.7]} 38. Nxa5 {[%clk 0:00:07.6]} 38... Qxd4 {[%clk 0:00:32.2]} 39. b7
{[%clk 0:00:08.3]} 39... Qa1+ {[%clk 0:00:28.1]} 40. Kg2 {[%clk 0:00:07.1]}
40... Qxa5 {[%clk 0:00:26]} 41. b8=Q {[%clk 0:00:06.7]} 41... Rxb8 {[%clk
0:00:27.1]} 42. Bxb8 {[%clk 0:00:08.4]} 42... Qb6 {[%clk 0:00:24.4]} 0-1

[Event "*** Titled Tuesday 3|2 Blitz"]
[Site "Chess.com"]
[Date "2016.01.05"]
[Round "4"]
[White "Colombiano07"]
[Black "LePatronn"]
[Result "1-0"]
[WhiteElo "2178"]
[BlackElo "1822"]
[TimeControl "180+2"]
[EndTime "17:51:21 PST"]
[Termination "Colombiano07 won by resignation"]

1. d4 {[%clk 0:03:01.9]} 1... Nf6 {[%clk 0:03:00.5]} 2. Nc3 {[%clk 0:03:02.5]}
2... d5 {[%clk 0:03:00.9]} 3. Bg5 {[%clk 0:03:02.9]} 3... e6 {[%clk 0:03:01.3]}
4. e4 {[%clk 0:03:03.5]} 4... Bb4 {[%clk 0:03:00.9]} 5. e5 {[%clk 0:03:04.2]}
5... h6 {[%clk 0:02:58.2]} 6. Be3 {[%clk 0:03:05.6]} 6... Ne4 {[%clk 0:02:58]}
7. Qg4 {[%clk 0:03:06.8]} 7... Nxc3 {[%clk 0:02:56]} 8. a3 {[%clk 0:03:06.4]}
8... Ba5 {[%clk 0:02:51.4]} 9. Bd2 {[%clk 0:03:06.1]} 9... Ne4 {[%clk
0:02:40.4]} 10. Bxa5 {[%clk 0:03:06.4]} 10... b6 {[%clk 0:02:37.1]} 11. Qxg7
{[%clk 0:02:55.7]} 11... Ke7 {[%clk 0:02:32]} 12. Bb4+ {[%clk 0:02:48.3]} 12...
c5 {[%clk 0:02:32.4]} 13. dxc5 {[%clk 0:02:50.2]} 13... bxc5 {[%clk 0:02:33.3]}
14. f3 {[%clk 0:02:36.3]} 14... Nd7 {[%clk 0:02:10.8]} 15. fxe4 {[%clk
0:02:31.2]} 15... cxb4 {[%clk 0:02:11.5]} 16. exd5 {[%clk 0:02:31.8]} 16... exd5
{[%clk 0:02:08]} 17. axb4 {[%clk 0:02:26.6]} 17... Bb7 {[%clk 0:01:46]} 18. Nf3
{[%clk 0:02:11.1]} 18... Qb6 {[%clk 0:01:46.3]} 19. Qg4 {[%clk 0:02:03.1]} 19...
Qe3+ {[%clk 0:01:39.6]} 20. Be2 {[%clk 0:02:03.5]} 20... Rhg8 {[%clk 0:01:29.2]}
21. Qh4+ {[%clk 0:01:52.5]} 21... f6 {[%clk 0:01:14]} 22. exf6+ {[%clk
0:01:52.6]} 22... Nxf6 {[%clk 0:01:14.5]} 23. Ra3 {[%clk 0:01:41.5]} 23... Qc1+
{[%clk 0:01:06.9]} 24. Bd1 {[%clk 0:01:30.8]} 24... Rae8 {[%clk 0:00:39.6]} 25.
O-O {[%clk 0:01:21.4]} 25... Rg4 {[%clk 0:00:23.8]} 26. Qf2 {[%clk 0:01:06.3]}
26... Ne4 {[%clk 0:00:20.7]} 27. Re1 {[%clk 0:00:30.7]} 27... Reg8 {[%clk
0:00:11.3]} 28. Nh4 {[%clk 0:00:22.3]} 28... Kd8 {[%clk 0:00:08.4]} 29. Bxg4
{[%clk 0:00:22.3]} 29... Rxg4 {[%clk 0:00:08.1]} 30. Rxc1 {[%clk 0:00:22.4]}
30... Nxf2 {[%clk 0:00:08.8]} 31. Kxf2 {[%clk 0:00:22.4]} 31... Rxh4 {[%clk
0:00:10.1]} 32. Rxa7 {[%clk 0:00:22.1]} 32... Kc7 {[%clk 0:00:10.8]} 33. Re1
{[%clk 0:00:21.6]} 33... Kb6 {[%clk 0:00:10.2]} 34. Rxb7+ {[%clk 0:00:21.4]}
34... Kxb7 {[%clk 0:00:10.9]} 35. Kg3 {[%clk 0:00:22.5]} 35... Rxb4 {[%clk
0:00:11.3]} 36. b3 {[%clk 0:00:23.3]} 36... Rd4 {[%clk 0:00:11.1]} 37. Re7+
{[%clk 0:00:23.1]} 37... Kc8 {[%clk 0:00:11.5]} 38. Re6 {[%clk 0:00:24.6]} 38...
Rd2 {[%clk 0:00:10.4]} 39. c4 {[%clk 0:00:25]} 39... d4 {[%clk 0:00:10.5]} 40.
Rd6 {[%clk 0:00:26]} 40... Rd3+ {[%clk 0:00:11.6]} 41. Kf4 {[%clk 0:00:26.1]}
41... Kc7 {[%clk 0:00:12.8]} 42. Rxh6 {[%clk 0:00:26.3]} 42... Rxb3 {[%clk
0:00:13.5]} 43. Ke4 {[%clk 0:00:27.7]} 43... Rb2 {[%clk 0:00:14.3]} 44. Rg6
{[%clk 0:00:28.1]} 44... Rd2 {[%clk 0:00:14.7]} 45. h4 {[%clk 0:00:28.6]} 45...
d3 {[%clk 0:00:15.2]} 46. Ke3 {[%clk 0:00:29.3]} 46... Rd1 {[%clk 0:00:15.9]}
47. h5 {[%clk 0:00:30.2]} 47... d2 {[%clk 0:00:16.5]} 48. Ke2 {[%clk 0:00:31.5]}
48... Rh1 {[%clk 0:00:17.5]} 49. Kxd2 {[%clk 0:00:31.8]} 49... Rxh5 {[%clk
0:00:19.1]} 50. Ke3 {[%clk 0:00:31]} 50... Rc5 {[%clk 0:00:20.1]} 51. Rg4 {[%clk
0:00:31.4]} 51... Kc6 {[%clk 0:00:20.9]} 52. Re4 {[%clk 0:00:32.9]} 52... Kd7
{[%clk 0:00:21.9]} 53. Kf4 {[%clk 0:00:33]} 53... Rc6 {[%clk 0:00:22.8]} 54. Kg5
{[%clk 0:00:32.9]} 54... Rc5+ {[%clk 0:00:24]} 55. Kf6 {[%clk 0:00:33.6]} 55...
Rh5 {[%clk 0:00:24.8]} 56. g4 {[%clk 0:00:34.1]} 56... Rc5 {[%clk 0:00:25.2]}
57. g5 {[%clk 0:00:35.2]} 57... Rc6+ {[%clk 0:00:26.7]} 58. Kf7 {[%clk
0:00:36.2]} 58... Rc5 {[%clk 0:00:25.4]} 59. Rd4+ {[%clk 0:00:36.7]} 59... Kc6
{[%clk 0:00:25.8]} 60. g6 {[%clk 0:00:38.1]} 60... Rf5+ {[%clk 0:00:26.5]} 61.
Kg8 {[%clk 0:00:38.9]} 61... Rg5 {[%clk 0:00:27.7]} 62. g7 {[%clk 0:00:40.2]}
62... Kc5 {[%clk 0:00:28.9]} 63. Rf4 {[%clk 0:00:41.4]} 63... Rg1 {[%clk
0:00:27.9]} 64. Kf7 {[%clk 0:00:42.5]} 64... Rxg7+ {[%clk 0:00:28]} 65. Kxg7
{[%clk 0:00:43.7]} 65... Kb4 {[%clk 0:00:29.7]} 66. Kf6 {[%clk 0:00:44.9]} 66...
Kc3 {[%clk 0:00:31]} 67. Ke6 {[%clk 0:00:46.3]} 67... Kb2 {[%clk 0:00:32.6]} 68.
Kd6 {[%clk 0:00:47.7]} 68... Ka1 {[%clk 0:00:34.2]} 69. c5 {[%clk 0:00:49.6]}
69... Ka2 {[%clk 0:00:35.5]} 70. c6 {[%clk 0:00:51.5]} 70... Ka1 {[%clk
0:00:37.2]} 71. c7 {[%clk 0:00:53.4]} 1-0